fUSD/lending_fUSD_20260228
["ID","MTS","AMOUNT","RATE_DAILY","PERIOD"]
[406884973,1772265039721,-566.14421015,0.00010042,2]
[406884976,1772265039730,-2500.0,0.00010194,2]
[406884978,1772265039740,-4000.0,0.00010278,2]
[406884980,1772265039749,-162.0,0.0001029,2]
[406884982,1772265039759,-4000.0,0.00010529,2]
[406884984,1772265039769,-162.0,0.00010655,2]
[406884986,1772265039784,-2500.0,0.00010742,2]
[406884988,1772265039798,-4000.0,0.00010779,2]
[406884990,1772265039808,-150.0,0.00010959,2]
[406884992,1772265039817,-4609.0,0.00010987,2]
[406884995,1772265039826,-1252.0,0.00010988,2]
[406884997,1772265039835,-162.0,0.00011019,2]
[406884999,1772265039845,-4000.0,0.0001103,2]
[406885001,1772265039854,-10316.98689649,0.00011099,2]
[406885003,1772265039864,-10316.98689645,0.00011099,2]
[406885005,1772265039873,-10316.98689645,0.00011099,2]
[406885007,1772265039882,-10316.98689645,0.00011235,2]
[406885009,1772265039892,-152.965757,0.00011361,2]
[406885011,1772265039902,-162.0,0.00011384,2]
[406885013,1772265039911,-2271.60771,0.000114,2]
[406885015,1772265039920,-1539.14,0.00011507,2]
[406885017,1772265039930,-162.0,0.00011748,2]
[406885019,1772265039939,-12311.84,0.00012055,2]
[406885021,1772265039948,-500.0,0.0001207,2]
[406885023,1772265039958,-500.0,0.0001207,2]
[406885025,1772265039968,-500.0,0.0001207,2]
[406885027,1772265039977,-500.0,0.0001207,2]
[406885029,1772265039988,-4354.0,0.00012085,2]
[406885031,1772265039997,-524.0,0.00012091,2]
[406885033,1772265040007,-162.0,0.00012113,2]
[406885035,1772265040016,-2197.02015744,0.00012242,2]
[406885037,1772265040025,-264979.2231,0.00012242,2]
[406885039,1772265040035,-15412.51812542,0.00012342,2]
[406885041,1772265040044,-10316.98689645,0.00012346,2]
[406885043,1772265040053,-162.0,0.00012478,2]
[406885045,1772265040062,-162.0,0.00012842,2]
[406885047,1772265040071,-15412.51812533,0.0001296,2]
[406885049,1772265040080,-2197.02015743,0.0001305,2]
[406885051,1772265040089,-2413.41162906,0.00013115,3]
[406885053,1772265040099,-162.0,0.00013207,2]
[406885055,1772265040108,-10316.98689645,0.00013457,2]
[406885056,1772265040118,-162.0,0.00013571,2]
[406885058,1772265040127,-15412.51812533,0.00013577,2]
[406885061,1772265040137,-500.0,0.00013697,2]
[406885062,1772265040146,-500.0,0.00013697,2]
[406885063,1772265040155,-500.0,0.00013697,2]
[406885064,1772265040164,-208.03686315,0.00013697,2]
[406885065,1772265040175,-259.96169612,0.00013697,2]
[406885066,1772265040184,-1694.90602265,0.00013697,2]
[406885067,1772265040193,-404.1787343,0.00013697,2]
[406885068,1772265040202,-500.0,0.00013697,2]
[406885069,1772265040212,-500.0,0.00013697,2]
[406885070,1772265040221,-1694.90602265,0.00013697,2]
[406885071,1772265040232,-316.7905715,0.00013697,2]
[406885072,1772265040241,-1694.90602265,0.00013697,2]
[406885073,1772265040251,-500.0,0.00013697,2]
[406885074,1772265040260,-1694.90602265,0.00013697,2]
[406885075,1772265040271,-500.0,0.00013697,2]
[406885076,1772265040280,-500.0,0.00013697,2]
[406885077,1772265040290,-1694.90602265,0.00013697,2]
[406885078,1772265040299,-450.38667386,0.00013697,2]
[406885079,1772265040312,-1694.90602265,0.00013697,2]
[406885080,1772265040321,-1694.90602265,0.00013697,2]
[406885081,1772265040330,-1694.90602265,0.00013697,2]
[406885082,1772265040339,-1694.90602265,0.00013697,2]
[406885084,1772265040349,-1694.90602265,0.00013697,2]
[406885085,1772265040358,-1694.90602265,0.00013697,2]
[406885087,1772265040367,-1694.90602265,0.00013697,2]
[406885089,1772265040377,-1694.90602265,0.00013697,2]
[406885091,1772265040387,-1694.90602265,0.00013697,2]
[406885093,1772265040396,-1694.90602265,0.00013697,2]
[406885095,1772265040406,-1694.90602265,0.00013697,2]
[406885097,1772265040415,-1694.90602265,0.00013697,2]
[406885099,1772265040424,-1694.90602265,0.00013697,2]
[406885101,1772265040434,-1694.90602265,0.00013697,2]
[406885103,1772265040443,-1694.90602265,0.00013697,2]
[406885105,1772265040452,-1694.90602265,0.00013697,2]
[406885107,1772265040462,-1694.90602265,0.00013697,2]
[406885109,1772265040471,-1694.90602265,0.00013697,2]
[406885111,1772265040481,-1694.90602265,0.00013697,2]
[406885114,1772265040490,-1694.90602265,0.00013697,2]
[406885115,1772265040500,-1694.90602265,0.00013697,2]
[406885117,1772265040509,-1694.90602265,0.00013697,2]
[406885120,1772265040520,-1694.90602265,0.00013697,2]
[406885122,1772265040529,-1694.90602265,0.00013697,2]
[406885124,1772265040538,-1694.90602265,0.00013697,2]
[406885126,1772265040547,-1694.90602265,0.00013697,2]
[406885128,1772265040558,-1694.90602265,0.00013697,2]
[406885130,1772265040568,-1694.90602265,0.00013697,2]
[406885132,1772265040578,-1694.90602265,0.00013697,2]
[406885134,1772265040587,-1694.90602265,0.00013697,2]
[406885136,1772265040598,-1694.90602265,0.00013697,2]
[406885138,1772265040607,-1694.90602265,0.00013697,2]
[406885140,1772265040616,-1694.90602265,0.00013697,2]
[406885142,1772265040626,-1694.90602265,0.00013697,2]
[406885144,1772265040637,-1694.90602265,0.00013697,2]
[406885146,1772265040646,-1694.90602265,0.00013697,2]
[406885148,1772265040655,-1694.90602265,0.00013697,2]
[406885150,1772265040664,-1694.90602265,0.00013697,2]
[406885152,1772265040673,-1694.90602265,0.00013697,2]
[406885154,1772265040682,-1694.90602265,0.00013697,2]
[406885156,1772265040691,-1694.90602265,0.00013697,2]
[406885158,1772265040700,-1694.90602265,0.00013697,2]
[406885160,1772265040709,-1694.90602265,0.00013697,2]
[406885161,1772265040718,-1694.90602265,0.00013697,2]
[406885163,1772265040728,-1694.90602265,0.00013697,2]
[406885165,1772265040736,-1694.90602265,0.00013697,2]
[406885167,1772265040745,-1694.90602265,0.00013697,2]
[406885169,1772265040754,-1694.90602265,0.00013697,2]
[406885171,1772265040763,-1694.90602265,0.00013697,2]
[406885173,1772265040773,-1694.90602265,0.00013697,2]
[406885175,1772265040782,-500.0,0.00013697,2]
[406885177,1772265040790,-1652.53337209,0.00013697,2]
[406885179,1772265040800,-1652.53337209,0.00013697,2]
[406885181,1772265040810,-1652.53337209,0.00013697,2]
[406885183,1772265040819,-1652.53337209,0.00013697,2]
[406885185,1772265040828,-1652.53337209,0.00013697,2]
[406885187,1772265040838,-1652.53337209,0.00013697,2]
[406885189,1772265040847,-1652.53337209,0.00013697,2]
[406885191,1772265040856,-1652.53337209,0.00013697,2]
[406885193,1772265040866,-1652.53337209,0.00013697,2]
[406885195,1772265040875,-1652.53337209,0.00013697,2]
[406885197,1772265040887,-1652.53337209,0.00013697,2]
[406885199,1772265040896,-1652.53337209,0.00013697,2]
[406885201,1772265040905,-1652.53337209,0.00013697,2]
[406885203,1772265040915,-1652.53337209,0.00013697,2]
[406885205,1772265040924,-1652.53337209,0.00013697,2]
[406885207,1772265040933,-1652.53337209,0.00013697,2]
[406885209,1772265040942,-1652.53337209,0.00013697,2]
[406885211,1772265040951,-1652.53337209,0.00013697,2]
[406885213,1772265040961,-1652.53337209,0.00013697,2]
[406885215,1772265040971,-1652.53337209,0.00013697,2]
[406885217,1772265040980,-1652.53337209,0.00013697,2]
[406885219,1772265040989,-1652.53337209,0.00013697,2]
[406885221,1772265040999,-1652.53337209,0.00013697,2]
[406885222,1772265041008,-1652.53337209,0.00013697,2]
[406885224,1772265041017,-1652.53337209,0.00013697,2]
[406885226,1772265041027,-1652.53337209,0.00013697,2]
[406885228,1772265041037,-1652.53337209,0.00013697,2]
[406885230,1772265041046,-1652.53337209,0.00013697,2]
[406885231,1772265041056,-1652.53337209,0.00013697,2]
[406885233,1772265041066,-1652.53337207,0.00013697,2]
[406885235,1772265041076,-1652.53337207,0.00013697,2]
[406885237,1772265041086,-1652.53337207,0.00013697,2]
[406885239,1772265041095,-1652.53337207,0.00013697,2]
[406885241,1772265041105,-1652.53337207,0.00013697,2]
[406885243,1772265041115,-1652.53337207,0.00013697,2]
[406885245,1772265041126,-1652.53337207,0.00013697,2]
[406885246,1772265041137,-500.0,0.00013698,2]
[406885248,1772265041147,-500.0,0.00013698,2]
[406885250,1772265041156,-500.0,0.00013698,2]
[406885251,1772265041165,-500.0,0.00013698,2]
[406885252,1772265041175,-500.0,0.00013698,2]
[406885253,1772265041185,-500.0,0.00013698,2]
[406885254,1772265041195,-500.0,0.00013698,2]
[406885255,1772265041204,-500.0,0.00013698,2]
[406885256,1772265041214,-500.0,0.00013698,2]
[406885257,1772265041228,-500.0,0.00013698,2]
[406885258,1772265041238,-500.0,0.00013698,2]
[406885259,1772265041248,-601.46010123,0.00013698,2]
[406885260,1772265041257,-500.0,0.00013698,2]
[406885261,1772265041268,-500.0,0.00013698,2]
[406885262,1772265041278,-500.0,0.00013698,2]
[406885263,1772265041434,-500.0,0.00013698,2]
[406885264,1772265041444,-500.0,0.00013698,2]
[406885265,1772265041454,-500.0,0.00013698,2]
[406885266,1772265041464,-500.0,0.00013698,2]
[406885267,1772265041475,-500.0,0.00013698,2]
[406885268,1772265041486,-500.0,0.00013698,2]
[406885269,1772265041506,-500.0,0.00013698,2]
[406885270,1772265041516,-624.58042463,0.00013698,2]
[406885271,1772265041527,-500.0,0.00013698,2]
[406885272,1772265041537,-500.0,0.00013698,2]
[406885273,1772265041547,-500.0,0.00013698,2]
[406885274,1772265041557,-500.0,0.00013698,2]
[406885275,1772265041567,-500.0,0.00013698,2]
[406885276,1772265041577,-500.0,0.00013698,2]
[406885277,1772265041587,-500.0,0.00013698,2]
[406885278,1772265041597,-500.0,0.00013698,2]
[406885279,1772265041607,-500.0,0.00013698,2]
[406885280,1772265041617,-500.0,0.00013698,2]
[406885281,1772265041631,-500.0,0.00013698,2]
[406885282,1772265041641,-500.0,0.00013698,2]
[406885283,1772265041651,-500.0,0.00013698,2]
[406885284,1772265041661,-500.0,0.00013698,2]
[406885285,1772265041671,-500.0,0.00013698,2]
[406885287,1772265041680,-500.0,0.00013698,2]
[406885289,1772265041690,-500.0,0.00013698,2]
[406885291,1772265041700,-500.0,0.00013698,2]
[406885293,1772265041710,-500.0,0.00013698,2]
[406885295,1772265041720,-500.0,0.00013698,2]
[406885297,1772265041729,-500.0,0.00013698,2]
[406885299,1772265041739,-500.0,0.00013698,2]
[406885301,1772265041748,-500.0,0.00013698,2]
[406885303,1772265041758,-270.1160722,0.00013698,2]
[406885305,1772265041767,-500.0,0.00013698,2]
[406885307,1772265041777,-500.0,0.00013698,2]
[406885310,1772265041787,-500.0,0.00013698,2]
[406885311,1772265041797,-500.0,0.00013698,2]
[406885313,1772265041807,-500.0,0.00013698,2]
[406885315,1772265041817,-500.0,0.00013698,2]
[406885317,1772265041827,-500.0,0.00013698,2]
[406885319,1772265041837,-500.0,0.00013698,2]
[406885321,1772265041847,-500.0,0.00013698,2]
[406885323,1772265041857,-500.0,0.00013698,2]
[406885325,1772265041868,-500.0,0.00013698,2]
[406885327,1772265041878,-500.0,0.00013698,2]
[406885330,1772265041888,-500.0,0.00013698,2]
[406885331,1772265041898,-500.0,0.00013698,2]
[406885333,1772265041908,-500.0,0.00013698,2]
[406885335,1772265041918,-500.0,0.00013698,2]
[406885338,1772265041928,-500.0,0.00013698,2]
[406885340,1772265041938,-500.0,0.00013698,2]
[406885341,1772265041947,-500.0,0.00013698,2]
[406885343,1772265041957,-500.0,0.00013698,2]
[406885345,1772265041966,-500.0,0.00013698,2]
[406885347,1772265041976,-500.0,0.00013698,2]
[406885349,1772265041986,-500.0,0.00013698,2]
[406885351,1772265041995,-500.0,0.00013698,2]
[406885353,1772265042005,-500.0,0.00013698,2]
[406885356,1772265042015,-500.0,0.00013698,2]
[406885357,1772265042025,-500.0,0.00013698,2]
[406885359,1772265042035,-173.8,0.00013698,2]
[406885360,1772265042045,-500.0,0.00013698,2]
[406885361,1772265042054,-500.0,0.00013698,2]
[406885362,1772265042064,-500.0,0.00013698,2]
[406885363,1772265042074,-512.80115338,0.00013698,2]
[406885364,1772265042083,-500.0,0.00013698,2]
[406885365,1772265042093,-500.0,0.00013698,2]
[406885366,1772265042102,-500.0,0.00013698,2]
[406885367,1772265042113,-500.0,0.00013698,2]
[406885368,1772265042123,-500.0,0.00013698,2]
[406885369,1772265042132,-500.0,0.00013698,2]
[406885370,1772265042143,-500.0,0.00013698,2]
[406885371,1772265042153,-440.49444221,0.00013698,2]
[406885372,1772265042162,-500.0,0.00013698,2]
[406885373,1772265042172,-500.0,0.00013698,2]
[406885374,1772265042181,-500.0,0.00013698,2]
[406885375,1772265042191,-500.0,0.00013698,2]
[406885376,1772265042201,-478.88,0.00013698,2]
[406885377,1772265042210,-500.0,0.00013698,2]
[406885378,1772265042221,-500.0,0.00013698,2]
[406885379,1772265042232,-500.0,0.00013698,2]
[406885380,1772265042242,-500.0,0.00013698,2]
[406885381,1772265042251,-500.0,0.00013698,2]
[406885382,1772265042260,-500.0,0.00013698,2]
[406885383,1772265042271,-500.0,0.00013698,2]
[406885384,1772265042281,-500.0,0.00013698,2]
[406885385,1772265042290,-500.0,0.00013698,2]
[406885386,1772265042300,-500.0,0.00013698,2]
[406885387,1772265042310,-500.0,0.00013698,2]
[406885388,1772265042319,-500.0,0.00013698,2]
[406885389,1772265042328,-500.0,0.00013698,2]
[406885390,1772265042340,-508.5684283,0.00013698,2]
[406885391,1772265042350,-500.0,0.00013698,2]
[406885392,1772265042359,-500.0,0.00013698,2]
[406885393,1772265042369,-502.22507836,0.00013698,2]
[406885394,1772265042379,-200.0,0.00013699,2]
[406885395,1772265042388,-843.23,0.00013699,2]
[406885396,1772265042398,-500.0,0.00013699,2]
[406885397,1772265042407,-500.0,0.00013699,2]
[406885398,1772265042416,-500.0,0.00013699,2]
[406885399,1772265042426,-161.82,0.000137,2]
[406885400,1772265042436,-2197.02015743,0.00013859,2]
[406885401,1772265042446,-900.0,0.000139,5]
[406885402,1772265042455,-500.0,0.00013908,2]
[406885403,1772265042465,-500.0,0.00013908,2]
[406885404,1772265042474,-500.0,0.00013908,2]
[406885405,1772265042484,-500.0,0.00013908,2]
[406885406,1772265042494,-500.0,0.00013908,2]
[406885407,1772265042504,-308.79336882,0.00013908,2]
[406885408,1772265042513,-500.0,0.00013908,2]
[406885409,1772265042523,-335.80836064,0.00013908,2]
[406885410,1772265042532,-500.0,0.00013908,2]
[406885411,1772265042542,-500.0,0.00013908,2]
[406885412,1772265042551,-500.0,0.00013908,2]
[406885413,1772265042560,-209.76903842,0.00013908,2]
[406885414,1772265042569,-337.91550103,0.00013908,2]
[406885415,1772265042578,-500.0,0.00013908,2]
[406885416,1772265042588,-500.0,0.00013908,2]
[406885417,1772265042597,-500.0,0.00013908,2]
[406885418,1772265042607,-279.65230115,0.00013908,2]
[406885419,1772265042617,-164.35592024,0.00013908,2]
[406885420,1772265042626,-500.0,0.00013908,2]
[406885421,1772265042636,-500.0,0.00013908,2]
[406885422,1772265042645,-500.0,0.00013908,2]
[406885423,1772265042654,-163.84904206,0.00013908,2]
[406885424,1772265042663,-500.0,0.00013908,2]
[406885425,1772265042673,-500.0,0.00013908,2]
[406885426,1772265042682,-500.0,0.00013908,2]
[406885427,1772265042691,-621.2419277,0.00013908,2]
[406885428,1772265042700,-500.0,0.00013908,2]
[406885429,1772265042709,-500.0,0.00013908,2]
[406885430,1772265042719,-162.16281507,0.00013908,2]
[406885431,1772265042729,-500.0,0.00013908,2]
[406885432,1772265042738,-524.57437487,0.00013908,2]
[406885433,1772265042747,-500.0,0.00013908,2]
[406885434,1772265042757,-500.0,0.00013908,2]
[406885435,1772265042766,-500.0,0.00013908,2]
[406885436,1772265042777,-500.0,0.00013908,2]
[406885437,1772265042787,-500.0,0.00013908,2]
[406885438,1772265042797,-160.28869668,0.00013908,2]
[406885439,1772265042806,-500.0,0.00013908,2]
[406885440,1772265042816,-500.0,0.00013908,2]
[406885442,1772265042825,-500.0,0.00013908,2]
[406885444,1772265042835,-500.0,0.00013908,2]
[406885446,1772265042845,-500.0,0.00013908,2]
[406885448,1772265042854,-500.0,0.00013908,2]
[406885449,1772265042864,-500.0,0.00013908,2]
[406885451,1772265042873,-500.0,0.00013908,2]
[406885453,1772265042882,-500.0,0.00013908,2]
[406885455,1772265042893,-160.97258953,0.00013908,2]
[406885457,1772265042902,-164.07470798,0.00013908,2]
[406885459,1772265042911,-500.0,0.00013908,2]
[406885460,1772265042921,-500.0,0.00013908,2]
[406885462,1772265042930,-500.0,0.00013908,2]
[406885464,1772265042939,-500.0,0.00013908,2]
[406885466,1772265042949,-500.0,0.00013908,2]
[406885468,1772265042958,-500.0,0.00013908,2]
[406885470,1772265042968,-500.0,0.00013908,2]
[406885472,1772265042977,-310.96112452,0.00013908,2]
[406885474,1772265042987,-500.0,0.00013908,2]
[406885475,1772265042996,-500.0,0.00013908,2]
[406885476,1772265043006,-500.0,0.00013908,2]
[406885477,1772265043015,-500.0,0.00013908,2]
[406885478,1772265043024,-500.0,0.00013908,2]
[406885479,1772265043034,-500.0,0.00013908,2]
[406885480,1772265043043,-500.0,0.00013908,2]
[406885481,1772265043053,-162.0,0.00013936,2]
[406885482,1772265043062,-511.0,0.0001411,33]
[406885483,1772265043072,-15412.51812533,0.00014195,2]
[406885484,1772265043082,-1000.0,0.00014247,2]
[406885485,1772265043091,-1000.0,0.00014247,2]
[406885486,1772265043100,-1000.0,0.00014247,2]
[406885487,1772265043110,-162.0,0.00014301,2]
[406885488,1772265043120,-776.97407445,0.00014456,2]
[406885489,1772265043130,-301.08254131,0.00014456,2]
[406885490,1772265043139,-1000.0,0.00014456,2]
[406885491,1772265043148,-1010.19433144,0.00014456,2]
[406885492,1772265043158,-1000.0,0.00014456,2]
[406885493,1772265043173,-176.28801878,0.00014456,2]
[406885494,1772265043182,-604.79723351,0.00014456,2]
[406885495,1772265043192,-1000.0,0.00014456,2]
[406885496,1772265043202,-1000.0,0.00014456,2]
[406885497,1772265043211,-509.56822593,0.00014456,2]
[406885498,1772265043223,-1000.0,0.00014456,2]
[406885499,1772265043233,-1000.0,0.00014456,2]
[406885500,1772265043242,-1000.0,0.00014456,2]
[406885501,1772265043251,-185.91789535,0.00014456,2]
[406885502,1772265043261,-1000.0,0.00014456,2]
[406885503,1772265043270,-1000.0,0.00014456,2]
[406885504,1772265043280,-1000.0,0.00014456,2]
[406885505,1772265043289,-1000.0,0.00014456,2]
[406885506,1772265043301,-1001.25349418,0.00014456,2]
[406885507,1772265043311,-380.87372073,0.00014456,2]
[406885508,1772265043320,-352.15203675,0.00014456,2]
[406885509,1772265043329,-1000.0,0.00014456,2]
[406885510,1772265043339,-1000.0,0.00014456,2]
[406885511,1772265043348,-1000.0,0.00014456,2]
[406885512,1772265043358,-1000.0,0.00014456,2]
[406885513,1772265043367,-1000.0,0.00014456,2]
[406885514,1772265043376,-1000.0,0.00014456,2]
[406885515,1772265043386,-1000.0,0.00014456,2]
[406885516,1772265043397,-1000.0,0.00014456,2]
[406885517,1772265043406,-1000.0,0.00014456,2]
[406885518,1772265043416,-503.10076377,0.00014456,2]
[406885519,1772265043426,-1000.0,0.00014456,2]
[406885520,1772265043436,-1000.0,0.00014456,2]
[406885521,1772265043446,-1000.0,0.00014456,2]
[406885522,1772265043455,-1000.0,0.00014456,2]
[406885523,1772265043465,-1000.0,0.00014456,2]
[406885524,1772265043475,-1004.03248552,0.00014456,2]
[406885525,1772265043486,-993.55181504,0.00014456,2]
[406885526,1772265043495,-1000.0,0.00014456,2]
[406885527,1772265043506,-468.68636614,0.00014456,2]
[406885528,1772265043516,-1000.0,0.00014456,2]
[406885529,1772265043525,-882.9763382,0.00014456,2]
[406885530,1772265043534,-1000.0,0.00014456,2]
[406885531,1772265043543,-1000.0,0.00014456,2]
[406885532,1772265043552,-1000.0,0.00014456,2]
[406885533,1772265043562,-501.70249257,0.00014456,2]
[406885534,1772265043572,-1000.0,0.00014456,2]
[406885535,1772265043581,-1000.0,0.00014456,2]
[406885536,1772265043595,-1000.0,0.00014456,2]
[406885537,1772265043604,-10316.98689645,0.00014568,2]
[406885538,1772265043613,-151.0,0.00014634,2]
[406885539,1772265043623,-162.0,0.00014665,2]
[406885540,1772265043633,-2197.02015743,0.00014667,2]
[406885541,1772265043643,-1600.0,0.00014692,2]
[406885542,1772265043652,-1500.0,0.00014795,2]
[406885543,1772265043662,-1500.0,0.00014795,2]
[406885544,1772265043671,-1500.0,0.00014795,2]
[406885545,1772265043680,-15412.51812533,0.00014812,2]
[406885546,1772265043689,-169.4304621,0.000149,2]
[406885547,1772265043699,-169.43046208,0.000149,2]
[406885548,1772265043708,-169.43046208,0.000149,2]
[406885549,1772265043717,-1217.87177273,0.00015004,2]
[406885550,1772265043726,-1500.0,0.00015004,2]
[406885551,1772265043735,-1500.0,0.00015004,2]
[406885552,1772265043745,-1510.16686171,0.00015004,2]
[406885553,1772265043755,-1508.05702942,0.00015004,2]
[406885554,1772265043764,-1093.78241863,0.00015004,2]
[406885555,1772265043774,-1500.0,0.00015004,2]
[406885556,1772265043783,-1014.6582369,0.00015004,2]
[406885557,1772265043792,-289.52830744,0.00015004,2]
[406885558,1772265043801,-1500.0,0.00015004,2]
[406885559,1772265043811,-1500.0,0.00015004,2]
[406885560,1772265043820,-1500.0,0.00015004,2]
[406885561,1772265043829,-1500.0,0.00015004,2]
[406885562,1772265043839,-1500.0,0.00015004,2]
[406885563,1772265043849,-1500.0,0.00015004,2]
[406885564,1772265043860,-1500.0,0.00015004,2]
[406885565,1772265043870,-1500.0,0.00015004,2]
[406885566,1772265043880,-1011.98217898,0.00015004,2]
[406885567,1772265043889,-1500.0,0.00015004,2]
[406885568,1772265043901,-506.55258231,0.00015004,2]
[406885569,1772265043911,-1500.0,0.00015004,2]
[406885570,1772265043921,-1500.0,0.00015004,2]
[406885571,1772265043931,-1508.78545051,0.00015004,2]
[406885572,1772265043941,-1500.0,0.00015004,2]
[406885573,1772265043951,-503.90241085,0.00015004,2]
[406885574,1772265043961,-1500.0,0.00015004,2]
[406885575,1772265043971,-1500.0,0.00015004,2]
[406885576,1772265043981,-1500.0,0.00015004,2]
[406885577,1772265043991,-1500.0,0.00015004,2]
[406885578,1772265044001,-1500.0,0.00015004,2]
[406885579,1772265044011,-1500.0,0.00015004,2]
[406885580,1772265044021,-504.49415487,0.00015004,2]
[406885581,1772265044031,-1500.0,0.00015004,2]
[406885582,1772265044041,-162.0,0.0001503,2]
[406885583,1772265044051,-267.35,0.00015068,2]
[406885584,1772265044061,-356.9201,0.00015148,7]
[406885585,1772265044070,-1893.006425,0.000152,7]
[406885586,1772265044079,-3403.15,0.00015247,2]
[406885587,1772265044089,-915.2,0.0001531,2]
[406885588,1772265044098,-29999.99,0.0001531,2]
[406885589,1772265044107,-9999.99,0.0001531,2]
[406885590,1772265044117,-13092.43,0.0001531,2]
[406885591,1772265044127,-200.0,0.00015318,2]
[406885592,1772265044136,-500.0,0.00015342,2]
[406885593,1772265044146,-500.0,0.00015342,2]
[406885594,1772265044156,-483.13999169,0.00015342,2]
[406885595,1772265044166,-2000.0,0.00015342,2]
[406885596,1772265044176,-650.13473928,0.00015342,2]
[406885597,1772265044185,-1013.9298778,0.00015342,2]
[406885598,1772265044196,-50000.0,0.0001535,2]
[406885599,1772265044206,-2258.6,0.00015379,2]
[406885600,1772265044217,-162.0,0.00015394,2]
[406885601,1772265044228,-15412.51812533,0.0001543,2]
[406885602,1772265044239,-9990.0,0.00015471,2]
[406885603,1772265044249,-2197.02015743,0.00015475,2]
[406885604,1772265044258,-2000.0,0.00015552,2]
[406885605,1772265044268,-2000.0,0.00015552,2]
[406885606,1772265044278,-2000.0,0.00015552,2]
[406885607,1772265044288,-2000.0,0.00015552,2]
[406885608,1772265044297,-2000.0,0.00015552,2]
[406885609,1772265044308,-1146.84360097,0.00015552,2]
[406885610,1772265044317,-1932.25528949,0.00015552,2]
[406885611,1772265044327,-2000.0,0.00015552,2]
[406885612,1772265044336,-1747.77184833,0.00015552,2]
[406885613,1772265044345,-529.02288049,0.00015552,2]
[406885614,1772265044354,-1706.92723051,0.00015552,2]
[406885615,1772265044363,-2000.0,0.00015552,2]
[406885616,1772265044374,-2000.0,0.00015552,2]
[406885617,1772265044383,-2041.26009197,0.00015552,2]
[406885618,1772265044392,-2000.0,0.00015552,2]
[406885619,1772265044403,-1718.82282533,0.00015552,2]
[406885620,1772265044412,-2000.0,0.00015552,2]
[406885621,1772265044422,-2000.0,0.00015552,2]
[406885622,1772265044432,-2000.0,0.00015552,2]
[406885623,1772265044442,-743.29162459,0.00015552,2]
[406885624,1772265044452,-2000.0,0.00015552,2]
[406885625,1772265044462,-2000.0,0.00015552,2]
[406885626,1772265044471,-10316.98689645,0.00015678,2]
[406885627,1772265044481,-1703.92584425,0.00016007,2]
[406885628,1772265044490,-160.0,0.00016017,2]
[406885629,1772265044500,-174.04581251,0.00016017,2]
[406885630,1772265044509,-15412.51812533,0.00016047,2]
[406885631,1772265044519,-2500.0,0.00016099,2]
[406885632,1772265044528,-2500.0,0.00016099,2]
[406885633,1772265044538,-2212.37829793,0.00016099,2]
[406885634,1772265044547,-2500.0,0.00016099,2]
[406885635,1772265044557,-1019.35272173,0.00016099,2]
[406885636,1772265044567,-1015.31004766,0.00016099,2]
[406885637,1772265044576,-2500.0,0.00016099,2]
[406885638,1772265044586,-2500.0,0.00016099,2]
[406885639,1772265044596,-703.36470484,0.00016099,2]
[406885640,1772265044606,-1009.53925467,0.00016099,2]
[406885641,1772265044616,-2500.0,0.00016099,2]
[406885642,1772265044626,-2526.23779749,0.00016099,2]
[406885643,1772265044636,-2500.0,0.00016099,2]
[406885644,1772265044646,-1118.86499239,0.00016099,2]
[406885645,1772265044655,-9999.99,0.00016116,2]
[406885646,1772265044665,-2197.02015743,0.00016283,2]
[406885647,1772265044676,-266.81662109,0.00016438,2]
[406885648,1772265044686,-1600.0,0.00016528,2]
[406885649,1772265044695,-189.09196497,0.00016549,2]
[406885650,1772265044704,-1032.89246011,0.00016647,2]
[406885651,1772265044714,-2990.28139264,0.00016647,2]
[406885652,1772265044724,-3000.0,0.00016647,2]